bitfinex/quotes_SOLUSD_20260113
["timestamp","ask_amount","ask_price","bid_price","bid_amount"]
[1768321299861,0.69412871,143.84,143.83,5.30227695]
[1768321300060,0.69412871,143.87,143.83,5.30227695]
[1768321300359,0.68848305,143.85,143.79,5.30227695]
[1768321300675,0.13515178,143.84,143.79,4.61242873]
[1768321300885,24.33428352,143.83,143.78,5.30227695]
[1768321301059,24.3694353,143.83,143.75,0.7234267]
[1768321301375,24.3694353,143.83,143.75,5.30227695]
[1768321301376,5.30227695,143.82,143.75,5.30227695]
[1768321301582,5.30227695,143.8,143.74,5.30227695]
[1768321301757,5.30227695,143.81,143.74,5.30227695]
[1768321301960,24.33428352,143.83,143.76,5.30227695]
[1768321302176,12.68,143.8,143.74,0.7234267]
[1768321302472,17.98227695,143.8,143.74,5.30227695]
[1768321302666,17.98227695,143.8,143.72,0.7234267]
[1768321302871,17.98227695,143.8,143.73,5.30227695]
[1768321303074,24.34105291,143.79,143.73,5.30227695]
[1768321303378,5.30227695,143.78,143.72,12.9835475]
[1768321303979,5.30227695,143.77,143.72,0.7234267]
[1768321304184,5.30227695,143.75,143.7,0.7234267]
[1768321304371,5.30227695,143.76,143.7,6.02570365]
[1768321304565,24.34105291,143.79,143.71,12.98396166]
[1768321304767,5.30227695,143.77,143.71,7.68168471]
[1768321304980,5.30227695,143.77,143.71,12.98396166]
[1768321305158,12.25831479,143.76,143.71,0.7234267]
[1768321305358,5.30227695,143.74,143.68,5.30227695]
[1768321305560,5.30227695,143.73,143.68,6.95975682]
[1768321305779,5.30227695,143.74,143.68,12.98546047]
[1768321306084,5.30227695,143.74,143.68,12.98546776]
[1768321306272,5.30227695,143.73,143.68,7.68319081]
[1768321306583,5.30227695,143.74,143.69,6.95937857]
[1768321306770,12.68,143.73,143.69,6.95937857]
[1768321307278,19.6375254,143.73,143.68,12.98551606]
[1768321307466,12.68,143.73,143.69,6.02570365]
[1768321307782,17.38774125,143.78,143.69,6.02570365]
[1768321308082,17.38774125,143.78,143.68,6.95981241]
[1768321308379,17.38774125,143.78,143.68,6.95986252]
[1768321308380,5.30227695,143.73,143.68,6.95986252]
[1768321308689,17.98227695,143.73,143.68,6.95986252]
[1768321308873,5.30227695,143.69,143.63,0.7234267]
[1768321309059,5.30227695,143.7,143.64,6.96175077]
[1768321309379,17.98227695,143.76,143.69,5.30227695]
[1768321309582,5.30227695,143.77,143.7,6.02570365]
[1768321309775,5.30227695,143.77,143.71,5.30227695]
[1768321309776,12.68,143.75,143.71,5.30227695]
[1768321310078,12.68,143.76,143.71,5.30227695]
[1768321310263,24.34274585,143.78,143.71,5.30227695]
[1768321310464,6.95507024,143.78,143.73,5.30227695]
[1768321310664,12.68,143.77,143.72,6.02570365]
[1768321311104,6.95603784,143.76,143.72,0.7234267]
[1768321311273,6.95603784,143.76,143.71,5.30227695]
[1768321311587,6.95603784,143.76,143.71,12.26062648]
[1768321312983,19.63570968,143.77,143.72,12.26016312]
[1768321313454,12.68,143.78,143.74,5.30227695]
[1768321313863,12.68,143.78,143.72,7.68131287]
[1768321314075,12.68,143.78,143.74,5.30227695]
[1768321314782,6.9547297,143.79,143.75,5.30227695]
[1768321314967,19.6347297,143.79,143.75,5.30227695]
[1768321315163,19.6347297,143.79,143.73,7.68078802]
[1768321315363,19.6347297,143.79,143.74,5.30227695]
[1768321315770,6.9547297,143.79,143.74,5.30227695]
[1768321315973,19.6347297,143.79,143.74,5.30227695]
[1768321316277,6.9547297,143.79,143.73,7.68078802]
[1768321316468,12.68,143.78,143.73,12.98306497]
[1768321316673,19.63528243,143.78,143.73,12.98306497]
[1768321317361,19.63528243,143.78,143.74,5.30227695]
[1768321317971,19.63528243,143.78,143.72,6.9578035]
[1768321317972,6.95528243,143.78,143.72,6.9578035]
[1768321318171,12.68,143.81,143.75,5.30227695]
[1768321318367,6.95313586,143.82,143.77,5.30227695]
[1768321318572,12.68,143.81,143.78,12.25696841]
[1768321318768,6.95279819,143.83,143.78,12.25696841]
[1768321318974,34.74432081,143.91,143.81,5.30227695]
[1768321319174,19.62927032,143.9,143.83,5.30227695]
[1768321319362,5.30227695,143.89,143.83,5.30227695]
[1768321319991,12.68,143.88,143.83,5.30227695]
[1768321320161,6.95071939,143.87,143.83,5.30227695]
[1768321320365,6.95071939,143.87,143.81,7.67682665]
[1768321320366,6.95071939,143.87,143.81,6.02570365]
[1768321320679,41.68113927,143.95,143.84,5.30227695]
[1768321320887,93.78256336,143.95,143.8,0.7234267]
[1768321321069,5.30227695,143.92,143.82,5.30227695]
[1768321321270,5.30227695,143.84,143.76,0.7234267]
[1768321321482,12.68,143.83,143.78,5.30227695]
[1768321321691,12.68,143.85,143.81,0.7234267]
[1768321321994,6.6801107,143.88,143.78,0.7234267]
[1768321322170,24.32920894,143.86,143.78,0.7234267]
[1768321322377,12.68,143.85,143.81,0.7234267]
[1768321322581,12.68,143.86,143.82,0.7234267]
[1768321322782,19.6307832,143.87,143.82,0.7234267]
[1768321322986,6.94878743,143.91,143.82,0.7234267]
[1768321323298,5.30227695,143.89,143.83,0.7234267]
[1768321323618,12.68,143.9,143.78,6.95501994]
[1768321323800,5.30227695,143.87,143.81,6.02570365]
[1768321324099,5.30227695,143.87,143.82,0.7234267]
[1768321324305,12.25290183,143.88,143.82,7.67610779]
[1768321324503,12.25290183,143.88,143.83,0.7234267]
[1768321324690,5.30227695,143.86,143.83,0.7234267]
[1768321325505,5.30227695,143.86,143.83,0.6531167]
[1768321325704,5.30227695,143.86,143.81,6.95352903]
[1768321325904,5.30227695,143.85,143.77,17.38838193]
[1768321326132,0.07031,143.83,143.76,6.95565715]
[1768321326303,5.30227695,143.79,143.74,17.39181302]
[1768321326602,5.30227695,143.77,143.73,6.95748973]
[1768321326783,5.30227695,143.75,143.72,6.95782536]
[1768321326982,0.07031,143.79,143.72,6.95782536]
[1768321327198,5.30227695,143.75,143.72,6.95782536]
[1768321327393,5.30227695,143.75,143.72,7.63567282]
[1768321328090,5.30227695,143.74,143.72,0.67784746]
[1768321328289,5.30227695,143.75,143.72,7.63581528]
[1768321329412,5.30227695,143.75,143.69,5.30227695]
[1768321329413,5.30227695,143.73,143.68,17.39934664]
[1768321329611,6.9560837,143.76,143.69,0.67784746]
[1768321329786,5.30227695,143.75,143.72,6.95791558]
[1768321329988,5.30227695,143.74,143.71,6.958458]
[1768321330215,5.30227695,143.73,143.7,0.67784746]
[1768321330389,5.30227695,143.73,143.7,7.63676249]
[1768321330597,5.30227695,143.74,143.7,7.63676249]
[1768321330888,6.95662426,143.75,143.68,0.67784746]
[1768321331087,24.3479286,143.75,143.69,7.63698397]
[1768321331307,5.30227695,143.73,143.7,6.95893871]
[1768321331705,5.30227695,143.73,143.69,0.67784746]
[1768321331706,5.30227695,143.73,143.69,7.63708251]
[1768321331900,5.30227695,143.72,143.69,7.63708251]
[1768321332099,5.30227695,143.73,143.7,0.67784746]
[1768321332306,5.30227695,143.74,143.7,0.67784746]
[1768321333102,5.30227695,143.73,143.7,0.67784746]
[1768321333309,5.30227695,143.74,143.7,0.67784746]
[1768321333809,12.25962468,143.74,143.7,0.67784746]
[1768321334010,5.30227695,143.73,143.7,0.67784746]
[1768321334816,5.30227695,143.72,143.68,7.63761505]
[1768321334998,5.30227695,143.72,143.68,0.67784746]
[1768321335433,5.30227695,143.7,143.66,0.67784746]
[1768321335597,5.30227695,143.7,143.67,0.67784746]
[1768321335899,5.30227695,143.71,143.67,7.63805083]
[1768321336995,5.30227695,143.7,143.67,0.67784746]
[1768321338019,0.07031,143.74,143.68,0.70741887]
[1768321338219,5.30227695,143.72,143.68,0.70741887]
[1768321339225,5.30227695,143.72,143.68,7.66730077]
[1768321339521,5.30227695,143.72,143.66,0.70741887]
[1768321339522,5.30227695,143.71,143.66,0.70741887]
[1768321339715,5.30227695,143.7,143.66,0.70741887]
[1768321339899,5.30227695,143.7,143.64,17.40404344]
[1768321339900,5.30227695,143.69,143.64,7.66920487]
[1768321340095,5.30227695,143.69,143.65,6.96134746]
[1768321340294,0.07031,143.71,143.65,6.96134746]
[1768321340496,5.30227695,143.69,143.65,6.96134746]
[1768321340916,5.30227695,143.68,143.64,0.70741887]
[1768321341148,5.30227695,143.67,143.62,0.70741887]
[1768321341305,5.30227695,143.66,143.62,7.66994325]
[1768321341515,0.07031,143.68,143.62,0.70741887]
[1768321341832,5.30227695,143.68,143.64,7.66918349]
[1768321342005,0.07031,143.72,143.65,0.70741887]
[1768321342212,5.30227695,143.69,143.65,0.70741887]
[1768321342799,5.30227695,143.68,143.65,0.70741887]
[1768321343101,5.30227695,143.69,143.65,7.66861919]
[1768321343296,7.02896297,143.71,143.65,7.66861919]
[1768321343537,6.9582638,143.72,143.66,0.70741887]
[1768321343698,5.30227695,143.69,143.66,0.70741887]
[1768321344500,5.30227695,143.7,143.66,0.70741887]
[1768321344912,5.30227695,143.71,143.66,0.70741887]
[1768321345405,5.30227695,143.7,143.64,7.66919361]
[1768321345605,5.37258695,143.68,143.62,6.00969582]
[1768321345806,0.07031,143.68,143.62,0.70741887]
[1768321346034,0.07031,143.71,143.64,0.70741887]
[1768321346243,5.30227695,143.68,143.62,0.70741887]
[1768321346736,5.30227695,143.69,143.65,6.9613546]
[1768321346935,5.30227695,143.69,143.64,7.66912728]
[1768321347107,6.95991091,143.68,143.64,0.70741887]
[1768321347303,15.59677173,143.69,143.64,7.669046]
[1768321347925,15.59677173,143.69,143.64,0.70741887]
[1768321348119,8.63715961,143.68,143.64,0.70741887]
[1768321348314,8.63715961,143.67,143.64,0.70741887]
[1768321348638,8.63715961,143.68,143.63,0.70741887]
[1768321349031,8.63715961,143.68,143.64,0.70741887]
[1768321349217,15.5973379,143.68,143.64,0.70741887]
[1768321349417,32.99711518,143.68,143.64,0.70741887]
[1768321349627,8.63715961,143.67,143.62,0.70741887]
[1768321349942,24.43026557,143.68,143.62,0.70741887]
[1768321349943,8.63715961,143.66,143.62,0.70741887]
[1768321350228,8.63715961,143.65,143.62,0.70741887]
[1768321351017,12.7,143.67,143.62,0.70741887]
[1768321351215,8.63715961,143.65,143.62,0.70741887]
[1768321351511,15.5985547,143.65,143.62,0.70741887]
[1768321351710,15.5985547,143.65,143.6,7.67092857]
[1768321351917,8.63715961,143.63,143.58,0.70741887]
[1768321352136,8.70746961,143.64,143.58,9.34457848]
[1768321352327,8.63715961,143.63,143.58,16.30925569]
[1768321352636,0.07031,143.64,143.57,17.41257007]
[1768321352637,8.63715961,143.61,143.57,0.70741887]
[1768321352832,12.7,143.62,143.56,0.2]
[1768321352833,8.63715961,143.59,143.56,0.2]
[1768321353306,15.60169077,143.59,143.56,0.2]
[1768321353713,6.96453116,143.59,143.56,0.2]
[1768321353922,15.60169077,143.59,143.56,0.12969]
[1768321354511,49.04082699,143.78,143.59,0.70741887]
[1768321354832,163.0,143.8,143.6,0.70741887]
[1768321354833,8.63715961,143.65,143.6,0.70741887]
[1768321355222,8.63715961,143.66,143.6,9.34457848]
[1768321355418,33.0007808,143.66,143.6,9.34457848]
[1768321355620,33.0007808,143.66,143.6,0.70741887]
[1768321355824,8.63715961,143.65,143.59,8.63715961]
[1768321356617,8.63715961,143.63,143.56,0.78272271]
[1768321356934,24.36362119,143.66,143.6,8.63715961]
[1768321357114,45.7007808,143.66,143.6,8.63715961]
[1768321357319,8.63715961,143.65,143.59,9.29019232]
[1768321357515,6.96184906,143.64,143.59,16.25441985]
[1768321358028,6.96184906,143.64,143.59,9.29019232]
[1768321358409,15.59900867,143.64,143.58,6.96456078]
[1768321358611,8.63715961,143.62,143.56,0.78272271]
[1768321358816,8.63715961,143.62,143.56,0.12969]
[1768321358817,8.63715961,143.61,143.56,0.12969]
[1768321359449,24.36647172,143.64,143.57,9.29019232]
[1768321359620,6.96281854,143.62,143.58,6.96463805]
[1768321359820,19.66252324,143.63,143.58,6.96463805]
[1768321360020,28.29968285,143.63,143.58,6.96463805]
[1768321360635,28.29968285,143.63,143.57,16.25525483]
[1768321360828,28.29968285,143.63,143.57,7.61809522]
[1768321361037,28.29968285,143.63,143.57,16.25525483]
[1768321361423,19.66252324,143.63,143.57,16.25525483]
[1768321361625,28.29968285,143.63,143.57,16.25525483]
[1768321361942,8.63715961,143.61,143.56,0.12969]
[1768321363430,8.63715961,143.6,143.56,1e-08]
[1768321363652,8.63715961,143.58,143.56,1e-08]
[1768321363951,6.96524343,143.57,143.56,1e-08]
[1768321364656,6.96524343,143.57,143.51,9.29019232]
[1768321364657,33.01551162,143.57,143.51,9.29019232]
[1768321364826,33.01551162,143.57,143.51,7.62090386]
[1768321365027,21.33715961,143.56,143.5,6.96850549]
[1768321365241,21.33715961,143.56,143.5,6.9684498]
[1768321365447,12.7,143.56,143.51,6.96813207]
[1768321365648,21.33715961,143.56,143.51,6.96813207]
[1768321365845,12.7,143.56,143.51,6.96813207]
[1768321366042,12.7,143.57,143.53,0.65303271]
[1768321366940,12.7,143.57,143.53,9.29019232]
[1768321367249,6.9652824,143.57,143.53,16.25736686]
[1768321367448,19.6648979,143.58,143.53,16.25736686]
[1768321368333,6.9648979,143.58,143.53,16.25736686]
[1768321368534,19.6648979,143.58,143.53,16.25736686]
[1768321368743,33.01395331,143.58,143.52,15.60460757]
[1768321368947,8.63715961,143.57,143.51,7.62105745]
[1768321369149,45.71395331,143.58,143.51,16.25821706]
[1768321369445,45.71395331,143.58,143.52,6.96765178]
[1768321369638,8.63715961,143.56,143.51,6.96802764]
[1768321369954,8.63715961,143.56,143.5,16.25853922]
[1768321370459,12.7,143.56,143.53,7.61993681]
[1768321370755,19.66578163,143.56,143.52,6.9673846]
[1768321370949,8.63715961,143.68,143.52,6.9673846]
[1768321370950,17.40841615,143.61,143.54,6.96669917]
[1768321371173,12.7,143.6,143.55,8.63715961]
[1768321371335,6.96330339,143.61,143.56,8.63715961]
[1768321371533,6.96297539,143.62,143.57,9.29019232]
[1768321371955,6.96248712,143.63,143.58,0.65303271]
[1768321372252,6.96248712,143.63,143.58,9.29019232]
[1768321372560,28.29964673,143.63,143.58,0.65303271]
[1768321373451,28.29964673,143.63,143.57,15.60213935]
[1768321373661,8.63715961,143.62,143.57,6.96497974]
[1768321374037,8.63715961,143.62,143.57,7.61801245]
[1768321374239,45.70548116,143.63,143.57,16.25517206]
[1768321374758,37.06832155,143.63,143.57,16.25517206]
[1768321375056,24.36832155,143.63,143.58,7.61777434]
[1768321375352,19.66248712,143.63,143.58,16.25493395]
[1768321375861,6.96248712,143.63,143.58,16.25493395]
[1768321376162,12.7,143.66,143.61,8.63715961]
[1768321376936,8.63715961,143.67,143.61,9.29019232]
[1768321377248,19.66087985,143.66,143.62,6.96281854]
[1768321377559,19.66087985,143.66,143.61,9.29019232]
[1768321378157,37.06307948,143.66,143.61,9.29019232]
[1768321379755,6.96087985,143.66,143.62,0.65303271]
[1768321380052,17.40042603,143.68,143.61,15.60020041]
[1768321380053,12.7,143.69,143.65,0.65303271]
[1768321380835,6.7401107,143.72,143.65,0.59303271]
[1768321381156,21.33715961,143.71,143.65,8.63715961]
[1768321381334,32.99176262,143.71,143.65,15.59843727]
[1768321381657,15.59561761,143.71,143.65,6.96127766]
[1768321381964,7.018458,143.71,143.66,8.63715961]
[1768321382136,6.958458,143.71,143.66,8.63715961]
[1768321382336,15.59561761,143.71,143.65,15.59843727]
[1768321382758,15.59561761,143.71,143.65,16.25146998]
[1768321382959,12.7,143.72,143.68,0.65303271]
[1768321383567,26.03144071,143.73,143.68,0.65303271]
[1768321383864,26.03144071,143.73,143.68,0.59303271]
[1768321384062,12.7,143.72,143.68,16.1900957]
[1768321384365,12.7,143.72,143.68,9.23019232]
[1768321384556,33.04667957,143.74,143.68,9.23019232]
[1768321384756,8.63715961,143.73,143.68,0.59303271]
[1768321385256,21.33715961,143.73,143.68,0.59303271]
[1768321385562,12.7,143.73,143.68,15.59676023]
[1768321385950,6.95797383,143.72,143.68,0.65442338]
[1768321386451,15.59513344,143.72,143.66,16.25233183]
[1768321386650,28.29513344,143.72,143.67,0.65442338]
[1768321387460,45.69006803,143.72,143.67,0.65442338]
[1768321387848,37.05290842,143.72,143.67,0.65442338]
[1768321388042,45.69006803,143.72,143.67,0.65442338]
[1768321388261,8.63715961,143.71,143.65,8.63715961]
[1768321388558,8.63715961,143.7,143.65,0.65442338]
[1768321388954,8.63715961,143.69,143.65,0.65442338]
[1768321389160,8.63715961,143.7,143.65,7.61577572]
[1768321389359,8.63715961,143.7,143.65,0.65442338]
[1768321390071,8.63715961,143.68,143.62,0.65442338]
[1768321390239,8.63715961,143.68,143.63,0.65442338]
[1768321390862,8.63715961,143.68,143.62,0.65442338]
[1768321390863,8.63715961,143.66,143.62,0.65442338]
[1768321391669,8.63715961,143.65,143.6,7.61803957]
[1768321391870,8.63715961,143.65,143.61,0.65442338]
[1768321392166,6.96136442,143.65,143.61,7.61770563]
[1768321392373,6.96136442,143.65,143.61,0.65442338]
[1768321392554,15.59852403,143.65,143.61,0.65442338]
[1768321393266,6.96136442,143.65,143.61,0.65442338]
[1768321393462,19.66103883,143.66,143.62,0.65442338]
[1768321393683,45.70039807,143.66,143.6,16.25519457]
[1768321393859,45.79960597,143.66,143.6,16.25519457]
[1768321394052,37.16244636,143.66,143.61,0.65442338]
[1768321394251,45.79960597,143.66,143.61,0.65442338]
[1768321394473,8.73657128,143.64,143.59,0.65442338]
[1768321394772,21.33715961,143.63,143.58,0.65442338]
[1768321394957,21.33715961,143.63,143.58,7.6189634]
[1768321396760,28.29996375,143.63,143.58,7.6189634]
[1768321397567,8.63715961,143.62,143.58,7.6189634]
[1768321398081,8.63715961,143.62,143.58,0.65442338]
[1768321398451,8.63715961,143.61,143.58,0.65442338]
[1768321398862,15.6001538,143.62,143.58,0.65442338]
[1768321399265,15.6001538,143.62,143.58,7.61909688]
[1768321399473,6.96299419,143.62,143.58,7.61909688]
[1768321399775,30.22562443,143.63,143.6,0.67613403]
[1768321399776,12.7,143.63,143.6,0.67613403]
[1768321400649,6.96185901,143.64,143.6,0.67613403]
[1768321403273,6.96185901,143.64,143.6,7.63970732]
[1768321404359,15.59901862,143.64,143.6,0.67613403]
[1768321404560,8.63715961,143.63,143.58,7.64070345]
[1768321404856,8.75674378,143.63,143.58,0.67613403]
[1768321405056,8.75654205,143.61,143.56,0.67613403]
[1768321405256,6.96395195,143.6,143.56,7.64184983]
[1768321405457,0.12,143.65,143.57,0.67613403]
[1768321405669,8.63715961,143.63,143.58,0.67613403]
[1768321406382,45.70433468,143.64,143.58,0.67613403]
[1768321406554,8.63715961,143.63,143.58,0.67613403]
[1768321407384,15.59980451,143.63,143.59,0.67613403]
[1768321409395,6.96203594,143.64,143.6,0.67613403]
[1768321409686,12.28096149,143.64,143.6,0.67613403]
[1768321410186,6.9614026,143.65,143.6,0.67613403]
[1768321411184,6.9614026,143.65,143.61,0.67613403]
[1768321413176,6.9614026,143.65,143.62,0.67613403]
[1768321413670,12.27883646,143.68,143.62,0.67613403]
[1768321413871,12.27883646,143.68,143.63,0.67613403]
[1768321414388,12.27883646,143.68,143.64,7.63798309]
[1768321414784,6.95991091,143.68,143.64,0.67613403]
[1768321415075,12.27883646,143.68,143.64,0.67613403]
[1768321415863,12.27854278,143.69,143.64,0.67613403]
[1768321416367,12.27854278,143.69,143.65,7.66331815]
[1768321416981,12.27854278,143.69,143.65,0.70195373]
[1768321418089,5.31892555,143.66,143.62,0.70195373]
[1768321418279,5.41833722,143.66,143.6,13.40195373]
[1768321418472,5.31362399,143.65,143.6,0.70195373]
[1768321418679,5.31892555,143.64,143.6,0.70195373]
[1768321418875,12.7,143.67,143.61,0.70195373]
[1768321419186,5.31892555,143.66,143.61,0.70195373]
[1768321419490,5.31892555,143.65,143.61,0.70195373]
[1768321420090,6.96133367,143.66,143.61,7.66506333]
[1768321420291,5.31892555,143.65,143.61,7.66506333]
[1768321420595,12.7,143.68,143.62,0.70195373]
[1768321420799,5.31892555,143.67,143.62,0.70195373]
[1768321421278,7.07959858,143.69,143.62,0.70195373]
[1768321421588,5.31892555,143.68,143.63,0.70195373]
[1768321421790,5.31892555,143.68,143.63,0.64195373]
[1768321422297,6.95959858,143.69,143.64,6.96184906]
[1768321422490,6.8001107,143.71,143.64,24.36647172]
[1768321422491,6.6801107,143.71,143.64,24.36647172]
[1768321422671,11.99903625,143.71,143.64,29.68539727]
[1768321423072,5.1942823,143.7,143.64,29.68539727]
[1768321423268,5.31892555,143.7,143.64,24.36647172]
[1768321423581,12.27743427,143.71,143.64,29.68539727]
[1768321423777,12.2769305,143.72,143.67,0.70195373]
[1768321424177,6.95800495,143.72,143.67,0.70195373]
[1768321424385,12.2769305,143.72,143.67,0.70195373]
[1768321424585,6.95800495,143.72,143.67,0.70195373]
[1768321424792,5.31892555,143.7,143.65,13.40195373]
[1768321424991,0.0998019,143.71,143.65,13.34195373]
[1768321425169,5.31892555,143.7,143.65,13.34195373]
[1768321425372,5.31892555,143.69,143.65,13.34195373]
[1768321425596,5.31892555,143.69,143.65,0.70195373]
[1768321425896,12.37922661,143.69,143.64,7.66380279]
[1768321426080,12.27863876,143.69,143.64,7.66380279]
[1768321426275,6.95971321,143.69,143.65,0.70195373]
[1768321426580,12.27863876,143.69,143.65,0.70195373]
[1768321426791,12.27863876,143.69,143.65,7.6632232]
[1768321426792,6.95971321,143.69,143.65,7.6632232]
[1768321427096,12.27863876,143.69,143.65,7.6632232]
[1768321427299,6.95971321,143.69,143.65,7.6632232]
[1768321427476,12.27863876,143.69,143.65,7.6632232]
[1768321428102,5.31892555,143.68,143.64,6.96149749]
[1768321428994,7.05973088,143.68,143.63,7.66408998]
[1768321429393,12.37865643,143.68,143.63,7.66408998]
[1768321429581,12.27885453,143.68,143.64,0.70195373]
[1768321429775,12.27885453,143.68,143.63,7.66408998]
[1768321431592,12.45804453,143.68,143.63,7.66408998]
[1768321431911,5.41872745,143.67,143.62,6.96281854]
[1768321432403,5.31892555,143.66,143.62,6.96281854]
[1768321432702,5.49732166,143.66,143.61,0.70195373]
[1768321432906,5.31892555,143.65,143.61,7.66508803]
[1768321433202,5.4195134,143.65,143.6,6.96358468]
[1768321433503,5.4195134,143.65,143.59,0.70195373]
[1768321433685,12.7,143.67,143.59,7.66604438]
[1768321433686,17.65918881,143.64,143.59,7.66604438]
[1768321433888,12.45879288,143.64,143.59,7.66604438]
[1768321437104,7.13986733,143.64,143.59,7.66604438]
[1768321437411,9.37362821,143.64,143.59,7.66604438]
[1768321440403,9.19601019,143.64,143.6,0.70195373]
[1768321441111,9.37520019,143.64,143.6,0.70195373]
[1768321441515,2.33356278,143.63,143.58,0.70195373]
[1768321442007,0.17839611,143.62,143.58,0.70195373]
[1768321442509,0.17839611,143.62,143.58,7.66651972]
[1768321442698,2.41215699,143.62,143.58,7.66651972]
[1768321443406,2.23376088,143.63,143.59,0.70195373]
[1768321443608,2.23376088,143.63,143.59,7.66612717]
[1768321444211,9.37601019,143.64,143.59,7.66612717]
[1768321445517,2.23376088,143.63,143.59,7.66612717]
[1768321445808,2.33276088,143.63,143.58,7.68445902]
[1768321446600,2.23376088,143.62,143.58,7.68445902]
[1768321446799,9.19676599,143.62,143.58,0.71971396]
[1768321447298,6.96300511,143.62,143.58,7.68433883]
[1768321448022,9.19676599,143.62,143.58,0.71971396]
[1768321448200,9.37595599,143.62,143.58,0.71971396]
[1768321448820,7.60925071,143.61,143.56,0.71971396]
[1768321449011,2.23376088,143.59,143.56,0.71971396]
[1768321449410,2.33356278,143.6,143.56,0.71971396]
[1768321450021,2.23376088,143.59,143.56,0.71971396]
[1768321450719,2.33434873,143.58,143.52,2.95347484]
[1768321450913,2.33587401,143.54,143.48,18.34299436]
[1768321451099,2.33587401,143.54,143.49,3.19173363]
[1768321451100,2.23376088,143.53,143.49,3.19173363]
[1768321451295,0.10211313,143.54,143.49,3.19173363]
[1768321451509,2.23376088,143.53,143.49,10.16070492]
[1768321451709,2.23376088,143.52,143.49,3.19173363]
[1768321451999,2.23376088,143.52,143.49,2.47201967]
[1768321452321,2.23376088,143.52,143.49,9.44107388]
[1768321452706,2.23376088,143.52,143.49,2.47201967]
[1768321452900,9.20179434,143.52,143.49,2.47201967]
[1768321453603,9.30464742,143.52,143.49,2.47201967]
[1768321454808,9.30464742,143.52,143.49,2.29487275]
[1768321455010,2.23376088,143.51,143.49,2.29487275]
[1768321456021,2.23376088,143.5,143.49,1.94675809]
[1768321456227,2.23376088,143.5,143.47,0.90926245]
[1768321456901,9.20269788,143.5,143.47,0.90926245]
[1768321457106,21.61387158,143.52,143.48,0.70926245]
[1768321457511,2.23376088,143.51,143.48,0.70926245]
[1768321458328,28.58174536,143.52,143.48,0.70926245]
[1768321459013,15.88174536,143.52,143.48,0.70926245]
[1768321459207,28.58174536,143.52,143.48,0.70926245]
[1768321459623,2.23376088,143.51,143.48,0.70926245]
[1768321459924,2.23376088,143.49,143.46,0.70926245]
[1768321460125,2.23376088,143.47,143.45,0.70926245]
[1768321460303,19.3801107,143.49,143.44,0.2]
[1768321460304,2.23376088,143.46,143.44,0.2]
[1768321461111,14.93376088,143.46,143.44,0.2]
[1768321462123,21.90439247,143.46,143.44,0.2]
[1768321462438,6.97018795,143.47,143.44,0.90926245]
[1768321462605,134.32074462,143.51,143.45,0.70926245]
[1768321462924,6.96735299,143.53,143.47,0.70926245]
[1768321463128,12.7,143.52,143.47,0.70926245]
[1768321463631,12.7,143.52,143.48,0.70926245]
[1768321463931,14.93376088,143.55,143.5,0.70926245]
[1768321464119,21.90015583,143.55,143.5,7.67781232]
[1768321464321,21.90015583,143.55,143.49,6.96897985]
[1768321464322,2.23376088,143.54,143.49,6.96897985]
[1768321464521,2.23376088,143.54,143.49,7.6782423]
[1768321465138,2.23376088,143.52,143.47,0.70926245]
[1768321465431,14.93376088,143.51,143.46,6.97038156]
[1768321465620,14.93376088,143.51,143.46,7.67964401]
[1768321465831,2.23376088,143.49,143.45,6.97091337]
[1768321466139,9.20310359,143.49,143.45,7.68017582]
[1768321466436,6.96934271,143.49,143.45,7.68017582]
[1768321467315,2.23376088,143.5,143.45,7.68017582]
[1768321467316,12.29750731,143.5,143.45,7.68017582]
[1768321467516,5.3288662,143.49,143.45,7.68017582]
[1768321467928,5.3288662,143.48,143.44,0.2]
[1768321468124,5.3288662,143.47,143.44,0.2]
[1768321468442,5.3288662,143.47,143.44,7.17151487]
[1768321468813,18.0288662,143.48,143.44,7.17151487]
[1768321469348,18.0288662,143.48,143.44,0.2]
[1768321469349,28.33173743,143.48,143.44,0.2]
[1768321469634,8.66184289,143.47,143.44,0.2]
[1768321470337,19.66989454,143.48,143.44,0.2]
[1768321470539,8.66184289,143.47,143.44,0.2]
[1768321471334,8.66184289,143.46,143.44,0.2]
[1768321471537,8.66184289,143.47,143.44,0.2]
[1768321472012,19.66989454,143.48,143.44,0.2]
[1768321472013,8.66184289,143.46,143.44,0.2]
[1768321473231,8.66184289,143.47,143.44,0.2]
[1768321473435,15.63221808,143.47,143.44,0.2]
[1768321473918,8.66184289,143.46,143.44,0.2]
[1768321475114,8.66184289,143.45,143.41,7.67121828]
[1768321475320,8.66184289,143.45,143.42,6.97242072]
[1768321475819,8.6318429,143.45,143.42,6.97242072]
[1768321476035,6.97037519,143.47,143.42,6.97242072]
[1768321476252,8.66184289,143.45,143.42,6.97242072]
[1768321476440,6.96864111,143.5,143.43,0.69866296]
[1768321476747,21.38184289,143.49,143.44,0.69866296]
[1768321477329,8.66184289,143.48,143.44,0.69866296]
[1768321477831,8.66184289,143.47,143.42,7.67100452]
[1768321478019,8.66184289,143.46,143.42,7.67100452]